[Event "Titled Tuesday Blitz April 25 Early 2023"]
[White "Mitrabha, Guha"]
[Black "Mamedyarov, Shakhriyar"]
[WhiteFideId "5057000"]
[BlackFideId "13401319"]
[WhiteElo "2507"]
[BlackElo "2704"]
[Result "0-1"]
[Round "07"]
[TimeControl "180+2"]
[Date "2023.04.25"]
[WhiteClock "0:00:32"]
[BlackClock "0:00:28"]

1. Nf3 {[%clk 0:03:00]}  Nf6 {[%clk 0:02:56]} 2. d4 {[%clk 0:03:00]}  e6 {[%clk 0:02:56]} 3. Bf4 {[%clk 0:03:00]}  b6 {[%clk 0:02:52]} 4. Nbd2 {[%clk 0:02:59]}  Bb7 {[%clk 0:02:52]} 5. e3 {[%clk 0:02:59]}  d6 {[%clk 0:02:52]} 6. h3 {[%clk 0:03:00]}  Nbd7 {[%clk 0:02:52]} 7. Bh2 {[%clk 0:03:01]}  g6 {[%clk 0:02:51]} 8. a4 {[%clk 0:03:02]}  a5 {[%clk 0:02:50]} 9. Bb5 {[%clk 0:03:01]}  Bg7 {[%clk 0:02:50]} 10. O-O {[%clk 0:03:01]}  O-O {[%clk 0:02:51]} 11. c3 {[%clk 0:03:02]}  Qe7 {[%clk 0:02:49]} 12. Re1 {[%clk 0:03:03]}  e5 {[%clk 0:02:47]} 13. dxe5 {[%clk 0:03:02]}  Nxe5 {[%clk 0:02:47]} 14. Nxe5 {[%clk 0:03:02]}  dxe5 {[%clk 0:02:48]} 15. e4 {[%clk 0:02:59]}  Rad8 {[%clk 0:02:45]} 16. Qc2 {[%clk 0:02:59]}  Nh5 {[%clk 0:02:42]} 17. Nf1 {[%clk 0:02:53]}  Nf4 {[%clk 0:02:41]} 18. Ne3 {[%clk 0:02:52]}  h5 {[%clk 0:02:41]} 19. Rad1 {[%clk 0:02:32]}  Rxd1 {[%clk 0:02:37]} 20. Rxd1 {[%clk 0:02:31]}  Rd8 {[%clk 0:02:38]} 21. Rxd8+ {[%clk 0:02:05]}  Qxd8 {[%clk 0:02:39]} 22. Bc4 {[%clk 0:02:06]}  Bf8 {[%clk 0:02:23]} 23. Bxf4 {[%clk 0:02:03]}  exf4 {[%clk 0:02:24]} 24. Nd5 {[%clk 0:02:04]}  Bd6 {[%clk 0:02:10]} 25. Qd2 {[%clk 0:01:35]}  Qg5 {[%clk 0:02:09]} 26. f3 {[%clk 0:01:33]}  Be5 {[%clk 0:02:00]} 27. Kh1 {[%clk 0:01:30]}  Kg7 {[%clk 0:01:55]} 28. Qd3 {[%clk 0:01:21]}  Bc8 {[%clk 0:01:52]} 29. b4 {[%clk 0:01:18]}  Be6 {[%clk 0:01:47]} 30. bxa5 {[%clk 0:01:14]}  bxa5 {[%clk 0:01:48]} 31. Qe2 {[%clk 0:01:00]}  Qd8 {[%clk 0:01:43]} 32. Qf2 {[%clk 0:00:57]}  c6 {[%clk 0:01:23]} 33. Nb6 {[%clk 0:00:55]}  Bc7 {[%clk 0:01:23]} 34. Nd5 {[%clk 0:00:38]}  cxd5 {[%clk 0:01:19]} 35. exd5 {[%clk 0:00:39]}  Bd7 {[%clk 0:01:11]} 36. Qd4+ {[%clk 0:00:38]}  Qf6 {[%clk 0:01:11]} 37. Qc5 {[%clk 0:00:37]}  Qb6 {[%clk 0:01:03]} 38. Qe7 {[%clk 0:00:36]}  Qd6 {[%clk 0:01:03]} 39. Qe4 {[%clk 0:00:34]}  Bxa4 {[%clk 0:01:00]} 40. Bd3 {[%clk 0:00:34]}  Bd7 {[%clk 0:00:57]} 41. Qd4+ {[%clk 0:00:35]}  Qe5 {[%clk 0:00:54]} 42. Qc5 {[%clk 0:00:35]}  a4 {[%clk 0:00:53]} 43. c4 {[%clk 0:00:34]}  Bd8 {[%clk 0:00:42]} 44. Qa7 {[%clk 0:00:32]}  Qe1+ {[%clk 0:00:28]} 45. Kh2 {[%clk 0:00:32]}  Bh4 {[%clk 0:00:28]} 0-1


[Site "https://www.chess.com"]

[Event "Titled Tuesday Blitz April 25 Early 2023"]
[White "Paravyan, David"]
[Black "Indjic, Aleksandar"]
[WhiteFideId "4194985"]
[BlackFideId "911925"]
[WhiteElo "2563"]
[BlackElo "2614"]
[Result "1-0"]
[Round "07"]
[TimeControl "180+2"]
[Date "2023.04.25"]
[WhiteClock "0:00:58"]
[BlackClock "0:00:17"]

1. e4 {[%clk 0:03:00]}  c5 {[%clk 0:03:00]} 2. Nf3 {[%clk 0:03:00]}  e6 {[%clk 0:03:00]} 3. d4 {[%clk 0:03:00]}  cxd4 {[%clk 0:03:01]} 4. Nxd4 {[%clk 0:03:01]}  a6 {[%clk 0:03:01]} 5. h3 {[%clk 0:03:00]}  Nf6 {[%clk 0:02:59]} 6. Bd3 {[%clk 0:03:00]}  Nc6 {[%clk 0:02:56]} 7. Nxc6 {[%clk 0:03:00]}  bxc6 {[%clk 0:02:57]} 8. Bf4 {[%clk 0:02:51]}  d5 {[%clk 0:02:54]} 9. Nd2 {[%clk 0:02:50]}  g6 {[%clk 0:02:52]} 10. O-O {[%clk 0:02:47]}  Bg7 {[%clk 0:02:51]} 11. c4 {[%clk 0:02:47]}  O-O {[%clk 0:02:50]} 12. Re1 {[%clk 0:02:44]}  Nh5 {[%clk 0:02:44]} 13. Bh2 {[%clk 0:02:45]}  Bxb2 {[%clk 0:02:39]} 14. Rb1 {[%clk 0:02:45]}  Bg7 {[%clk 0:02:37]} 15. Qc2 {[%clk 0:02:45]}  d4 {[%clk 0:02:26]} 16. e5 {[%clk 0:02:38]}  Bh6 {[%clk 0:02:11]} 17. Ne4 {[%clk 0:02:34]}  Ra7 {[%clk 0:01:58]} 18. c5 {[%clk 0:02:31]}  f5 {[%clk 0:01:57]} 19. exf6 {[%clk 0:02:23]}  Nxf6 {[%clk 0:01:56]} 20. Bd6 {[%clk 0:02:20]}  Rff7 {[%clk 0:01:39]} 21. Nxf6+ {[%clk 0:02:19]}  Rxf6 {[%clk 0:01:39]} 22. Rb8 {[%clk 0:02:17]}  Bf4 {[%clk 0:01:39]} 23. Re4 {[%clk 0:01:43]}  Bxd6 {[%clk 0:00:57]} 24. cxd6 {[%clk 0:01:44]}  Rf8 {[%clk 0:00:52]} 25. Bc4 {[%clk 0:01:27]}  Kg7 {[%clk 0:00:20]} 26. Bxe6 {[%clk 0:01:24]}  Qxd6 {[%clk 0:00:20]} 27. Rxc8 {[%clk 0:01:23]}  Rxc8 {[%clk 0:00:20]} 28. Bxc8 {[%clk 0:01:24]}  c5 {[%clk 0:00:20]} 29. Be6 {[%clk 0:01:08]}  Re7 {[%clk 0:00:18]} 30. Bc4 {[%clk 0:01:06]}  Qc7 {[%clk 0:00:18]} 31. g3 {[%clk 0:01:04]}  Qb7 {[%clk 0:00:17]} 32. Rxe7+ {[%clk 0:01:03]}  Qxe7 {[%clk 0:00:18]} 33. Qe2 {[%clk 0:00:59]}  Qb7 {[%clk 0:00:16]} 34. Qe5+ {[%clk 0:00:58]}  Kh6 {[%clk 0:00:17]} 1-0


[Site "https://www.chess.com"]

[Event "Titled Tuesday Blitz April 25 Early 2023"]
[White "Harsha Bharathakoti"]
[Black "Nguyen, Ngoc Truong Son"]
[WhiteFideId "5078776"]
[BlackFideId "12401110"]
[WhiteElo "2504"]
[BlackElo "2556"]
[Result "0-1"]
[Round "07"]
[TimeControl "180+2"]
[Date "2023.04.25"]
[WhiteClock "0:00:02"]
[BlackClock "0:00:55"]

1. e4 {[%clk 0:03:00]}  e5 {[%clk 0:02:45]} 2. Nf3 {[%clk 0:03:00]}  Nf6 {[%clk 0:02:45]} 3. Nxe5 {[%clk 0:02:47]}  d6 {[%clk 0:02:45]} 4. Nd3 {[%clk 0:02:42]}  Nxe4 {[%clk 0:02:45]} 5. Qe2 {[%clk 0:02:42]}  Qe7 {[%clk 0:02:44]} 6. Nf4 {[%clk 0:02:42]}  Nf6 {[%clk 0:02:42]} 7. d4 {[%clk 0:02:40]}  Bf5 {[%clk 0:02:35]} 8. c3 {[%clk 0:02:28]}  Nbd7 {[%clk 0:02:30]} 9. h4 {[%clk 0:02:20]}  O-O-O {[%clk 0:02:29]} 10. Qxe7 {[%clk 0:02:18]}  Bxe7 {[%clk 0:02:29]} 11. f3 {[%clk 0:02:13]}  h6 {[%clk 0:02:25]} 12. g4 {[%clk 0:02:00]}  Bh7 {[%clk 0:02:25]} 13. Bd3 {[%clk 0:01:57]}  Bxd3 {[%clk 0:02:15]} 14. Nxd3 {[%clk 0:01:58]}  h5 {[%clk 0:02:16]} 15. g5 {[%clk 0:01:58]}  Ne8 {[%clk 0:02:12]} 16. Nd2 {[%clk 0:01:49]}  g6 {[%clk 0:02:11]} 17. Ne4 {[%clk 0:01:45]}  d5 {[%clk 0:02:09]} 18. Ng3 {[%clk 0:01:45]}  Bd6 {[%clk 0:02:04]} 19. Bf4 {[%clk 0:01:45]}  Bxf4 {[%clk 0:01:45]} 20. Nxf4 {[%clk 0:01:46]}  c6 {[%clk 0:01:43]} 21. Kf2 {[%clk 0:01:39]}  Nd6 {[%clk 0:01:44]} 22. Rae1 {[%clk 0:01:30]}  Rde8 {[%clk 0:01:44]} 23. Nd3 {[%clk 0:01:22]}  Kd8 {[%clk 0:01:41]} 24. a4 {[%clk 0:00:58]}  a5 {[%clk 0:01:37]} 25. b3 {[%clk 0:00:57]}  Rxe1 {[%clk 0:01:31]} 26. Rxe1 {[%clk 0:00:57]}  Re8 {[%clk 0:01:32]} 27. Rc1 {[%clk 0:00:55]}  b6 {[%clk 0:01:20]} 28. Nf4 {[%clk 0:00:53]}  Kc7 {[%clk 0:01:08]} 29. c4 {[%clk 0:00:48]}  dxc4 {[%clk 0:01:06]} 30. bxc4 {[%clk 0:00:49]}  c5 {[%clk 0:01:06]} 31. Nge2 {[%clk 0:00:18]}  cxd4 {[%clk 0:01:06]} 32. Nxd4 {[%clk 0:00:18]}  Nc5 {[%clk 0:01:05]} 33. Nd5+ {[%clk 0:00:07]}  Kb7 {[%clk 0:01:05]} 34. Rb1 {[%clk 0:00:04]}  Nxc4 {[%clk 0:01:04]} 35. Nb5 {[%clk 0:00:02]}  Rd8 {[%clk 0:00:57]} 36. Nbc3 {[%clk 0:00:02]}  Nxa4 {[%clk 0:00:55]} 0-1


[Site "https://www.chess.com"]

[Event "Titled Tuesday Blitz April 25 Early 2023"]
[White "Mirzoev, Azer"]
[Black "Shimanov, Aleksandr"]
[WhiteFideId "13400304"]
[BlackFideId "4198603"]
[WhiteElo "2525"]
[BlackElo "2631"]
[Result "0-1"]
[Round "07"]
[TimeControl "180+2"]
[Date "2023.04.25"]
[WhiteClock "0:00:19"]
[BlackClock "0:01:10"]

1. d4 {[%clk 0:03:00]}  g6 {[%clk 0:02:58]} 2. e4 {[%clk 0:02:59]}  d6 {[%clk 0:02:58]} 3. Nc3 {[%clk 0:02:58]}  Nf6 {[%clk 0:02:57]} 4. Be3 {[%clk 0:02:55]}  a6 {[%clk 0:02:56]} 5. Qd2 {[%clk 0:02:55]}  b5 {[%clk 0:02:55]} 6. f3 {[%clk 0:02:55]}  Nbd7 {[%clk 0:02:54]} 7. Bh6 {[%clk 0:02:54]}  Bb7 {[%clk 0:02:52]} 8. Nh3 {[%clk 0:02:47]}  c5 {[%clk 0:02:49]} 9. d5 {[%clk 0:02:42]}  Qa5 {[%clk 0:02:39]} 10. Nf2 {[%clk 0:02:26]}  O-O-O {[%clk 0:01:57]} 11. Bxf8 {[%clk 0:02:23]}  Rhxf8 {[%clk 0:01:56]} 12. Be2 {[%clk 0:02:23]}  Rg8 {[%clk 0:01:53]} 13. O-O {[%clk 0:02:19]}  g5 {[%clk 0:01:53]} 14. a3 {[%clk 0:02:18]}  Ne5 {[%clk 0:01:50]} 15. Kh1 {[%clk 0:02:10]}  Kb8 {[%clk 0:01:48]} 16. Rfb1 {[%clk 0:01:52]}  Qb6 {[%clk 0:01:46]} 17. Ncd1 {[%clk 0:01:47]}  e6 {[%clk 0:01:45]} 18. dxe6 {[%clk 0:01:44]}  fxe6 {[%clk 0:01:46]} 19. b4 {[%clk 0:01:43]}  c4 {[%clk 0:01:46]} 20. Qc3 {[%clk 0:01:33]}  g4 {[%clk 0:01:41]} 21. f4 {[%clk 0:01:28]}  Ned7 {[%clk 0:01:41]} 22. e5 {[%clk 0:00:55]}  dxe5 {[%clk 0:01:40]} 23. fxe5 {[%clk 0:00:55]}  Nd5 {[%clk 0:01:37]} 24. Qg3 {[%clk 0:00:53]}  Rdf8 {[%clk 0:01:30]} 25. Ne4 {[%clk 0:00:47]}  Nf4 {[%clk 0:01:11]} 26. Nf6 {[%clk 0:00:26]}  Nxe2 {[%clk 0:01:10]} 27. Nxd7+ {[%clk 0:00:25]}  Kc7 {[%clk 0:01:10]} 28. Qe1 {[%clk 0:00:19]}  Bxg2+ {[%clk 0:01:10]} 0-1


[Site "https://www.chess.com"]

[Event "Titled Tuesday Blitz April 25 Early 2023"]
[White "Firouzja, Alireza"]
[Black "Atakishiyev, Elmar"]
[WhiteFideId "12573981"]
[BlackFideId "13410547"]
[WhiteElo "2904"]
[BlackElo "2239"]
[Result "1-0"]
[Round "07"]
[TimeControl "180+2"]
[Date "2023.04.25"]
[WhiteClock "0:00:06"]
[BlackClock "0:00:01"]

1. d4 {[%clk 0:03:00]}  Nf6 {[%clk 0:02:58]} 2. c4 {[%clk 0:03:01]}  g6 {[%clk 0:02:56]} 3. Nc3 {[%clk 0:03:01]}  d5 {[%clk 0:02:57]} 4. cxd5 {[%clk 0:02:59]}  Nxd5 {[%clk 0:02:57]} 5. e4 {[%clk 0:03:00]}  Nxc3 {[%clk 0:02:57]} 6. bxc3 {[%clk 0:03:01]}  Bg7 {[%clk 0:02:58]} 7. Bc4 {[%clk 0:03:01]}  c5 {[%clk 0:02:59]} 8. Ne2 {[%clk 0:03:02]}  Nc6 {[%clk 0:02:59]} 9. Be3 {[%clk 0:03:03]}  O-O {[%clk 0:03:00]} 10. h4 {[%clk 0:03:04]}  Qa5 {[%clk 0:02:59]} 11. Kf1 {[%clk 0:03:01]}  b6 {[%clk 0:02:57]} 12. h5 {[%clk 0:02:42]}  Ba6 {[%clk 0:02:57]} 13. Bxa6 {[%clk 0:02:42]}  Qxa6 {[%clk 0:02:57]} 14. hxg6 {[%clk 0:02:43]}  hxg6 {[%clk 0:02:57]} 15. Kg1 {[%clk 0:02:38]}  Rfd8 {[%clk 0:02:53]} 16. d5 {[%clk 0:02:25]}  Qc4 {[%clk 0:02:32]} 17. Ng3 {[%clk 0:02:14]}  e6 {[%clk 0:02:31]} 18. Bg5 {[%clk 0:02:10]}  Rd7 {[%clk 0:02:28]} 19. Qg4 {[%clk 0:02:06]}  Rxd5 {[%clk 0:01:50]} 20. Bf4 {[%clk 0:01:59]}  Rd3 {[%clk 0:01:28]} 21. Qh4 {[%clk 0:01:59]}  Qxc3 {[%clk 0:01:26]} 22. Rc1 {[%clk 0:01:52]}  Qb2 {[%clk 0:01:21]} 23. e5 {[%clk 0:01:27]}  Nxe5 {[%clk 0:01:03]} 24. Ne4 {[%clk 0:01:18]}  Qd4 {[%clk 0:00:39]} 25. Re1 {[%clk 0:00:26]}  c4 {[%clk 0:00:32]} 26. Bg5 {[%clk 0:00:22]}  Nd7 {[%clk 0:00:24]} 27. Be7 {[%clk 0:00:16]}  f6 {[%clk 0:00:18]} 28. Bb4 {[%clk 0:00:11]}  Nc5 {[%clk 0:00:11]} 29. Qh7+ {[%clk 0:00:05]}  Kf7 {[%clk 0:00:11]} 30. Rh6 {[%clk 0:00:06]}  Nxe4 {[%clk 0:00:04]} 31. Qxg6+ {[%clk 0:00:06]}  Kg8 {[%clk 0:00:05]} 32. Qh7+ {[%clk 0:00:07]}  Kf7 {[%clk 0:00:05]} 33. Qg6+ {[%clk 0:00:05]}  Kg8 {[%clk 0:00:05]} 34. Rxe4 {[%clk 0:00:06]}  Rd1+ {[%clk 0:00:05]} 35. Kh2 {[%clk 0:00:06]}  Qd5 {[%clk 0:00:04]} 36. Rg4 {[%clk 0:00:06]}  Qd7 {[%clk 0:00:01]} 37. Qh7+ {[%clk 0:00:06]} 1-0


[Site "https://www.chess.com"]

[Event "Titled Tuesday Blitz April 25 Early 2023"]
[White "djokovic74"]
[Black "Timofeev, Artyom"]
[BlackFideId "4140419"]
[WhiteElo "2617"]
[BlackElo "2586"]
[Result "1-0"]
[Round "07"]
[TimeControl "180+2"]
[Date "2023.04.25"]
[WhiteClock "0:00:03"]
[BlackClock "0:00:04"]

1. e4 {[%clk 0:03:00]}  d6 {[%clk 0:02:59]} 2. d4 {[%clk 0:03:00]}  Nf6 {[%clk 0:02:59]} 3. Nc3 {[%clk 0:03:01]}  g6 {[%clk 0:02:59]} 4. Nf3 {[%clk 0:03:02]}  Bg7 {[%clk 0:02:59]} 5. Be2 {[%clk 0:03:02]}  O-O {[%clk 0:02:58]} 6. O-O {[%clk 0:03:03]}  c6 {[%clk 0:02:58]} 7. a4 {[%clk 0:03:01]}  a5 {[%clk 0:02:57]} 8. Re1 {[%clk 0:03:01]}  Qc7 {[%clk 0:02:57]} 9. h3 {[%clk 0:02:55]}  e5 {[%clk 0:02:56]} 10. Bc4 {[%clk 0:02:50]}  Nbd7 {[%clk 0:02:54]} 11. dxe5 {[%clk 0:02:29]}  dxe5 {[%clk 0:02:36]} 12. Be3 {[%clk 0:02:29]}  h6 {[%clk 0:02:35]} 13. Qe2 {[%clk 0:02:24]}  Re8 {[%clk 0:02:29]} 14. Red1 {[%clk 0:02:19]}  Nf8 {[%clk 0:02:28]} 15. Bc5 {[%clk 0:02:09]}  N6d7 {[%clk 0:02:22]} 16. Bd6 {[%clk 0:02:02]}  Qb6 {[%clk 0:02:21]} 17. Ra3 {[%clk 0:01:45]}  Ne6 {[%clk 0:02:19]} 18. Rb3 {[%clk 0:01:42]}  Qa7 {[%clk 0:02:18]} 19. Bxe6 {[%clk 0:01:03]}  Rxe6 {[%clk 0:02:17]} 20. Qc4 {[%clk 0:01:03]}  Bf8 {[%clk 0:02:17]} 21. Bxf8 {[%clk 0:01:01]}  Kxf8 {[%clk 0:02:17]} 22. Ne2 {[%clk 0:00:59]}  Kg7 {[%clk 0:02:06]} 23. Rbd3 {[%clk 0:00:55]}  Re7 {[%clk 0:01:59]} 24. Rd6 {[%clk 0:00:53]}  Qc5 {[%clk 0:01:40]} 25. Qb3 {[%clk 0:00:43]}  Qb4 {[%clk 0:01:34]} 26. Qe3 {[%clk 0:00:42]}  Qxa4 {[%clk 0:01:23]} 27. Ng3 {[%clk 0:00:39]}  Qxc2 {[%clk 0:00:27]} 28. Nf5+ {[%clk 0:00:36]}  gxf5 {[%clk 0:00:27]} 29. Qxh6+ {[%clk 0:00:35]}  Kg8 {[%clk 0:00:27]} 30. Ng5 {[%clk 0:00:31]}  f6 {[%clk 0:00:23]} 31. Qg6+ {[%clk 0:00:21]}  Rg7 {[%clk 0:00:23]} 32. Qe8+ {[%clk 0:00:21]}  Nf8 {[%clk 0:00:24]} 33. Rd8 {[%clk 0:00:17]}  Qxd1+ {[%clk 0:00:19]} 34. Rxd1 {[%clk 0:00:17]}  fxg5 {[%clk 0:00:20]} 35. Rd8 {[%clk 0:00:13]}  Rf7 {[%clk 0:00:20]} 36. Rxc8 {[%clk 0:00:11]}  Rxc8 {[%clk 0:00:20]} 37. Qxc8 {[%clk 0:00:12]}  fxe4 {[%clk 0:00:20]} 38. Qd8 {[%clk 0:00:12]}  Rg7 {[%clk 0:00:18]} 39. Kh2 {[%clk 0:00:06]}  a4 {[%clk 0:00:15]} 40. Qe8 {[%clk 0:00:07]}  Rf7 {[%clk 0:00:10]} 41. Qxe5 {[%clk 0:00:05]}  Ng6 {[%clk 0:00:09]} 42. Qxg5 {[%clk 0:00:03]}  Kg7 {[%clk 0:00:09]} 43. h4 {[%clk 0:00:03]}  Kh7 {[%clk 0:00:09]} 44. h5 {[%clk 0:00:03]}  Nf8 {[%clk 0:00:09]} 45. Qe5 {[%clk 0:00:03]}  Rxf2 {[%clk 0:00:07]} 46. Qxe4+ {[%clk 0:00:02]}  Kg8 {[%clk 0:00:08]} 47. Qg4+ {[%clk 0:00:02]}  Kh7 {[%clk 0:00:08]} 48. Qe4+ {[%clk 0:00:03]}  Kg8 {[%clk 0:00:08]} 49. Qxa4 {[%clk 0:00:03]}  Rf7 {[%clk 0:00:07]} 50. Qg4+ {[%clk 0:00:01]}  Rg7 {[%clk 0:00:07]} 51. Qe4 {[%clk 0:00:02]}  Rf7 {[%clk 0:00:08]} 52. g4 {[%clk 0:00:02]}  Nh7 {[%clk 0:00:07]} 53. Qe5 {[%clk 0:00:01]}  Rg7 {[%clk 0:00:06]} 54. Qe8+ {[%clk 0:00:01]}  Nf8 {[%clk 0:00:06]} 55. Kh3 {[%clk 0:00:02]}  b5 {[%clk 0:00:05]} 56. Kh4 {[%clk 0:00:02]}  b4 {[%clk 0:00:05]} 57. g5 {[%clk 0:00:03]}  c5 {[%clk 0:00:05]} 58. h6 {[%clk 0:00:02]}  Rg6 {[%clk 0:00:06]} 59. Kh5 {[%clk 0:00:02]}  Re6 {[%clk 0:00:05]} 60. Qc8 {[%clk 0:00:01]}  Re5 {[%clk 0:00:05]} 61. h7+ {[%clk 0:00:02]}  Kxh7 {[%clk 0:00:05]} 62. Qxf8 {[%clk 0:00:02]}  Re1 {[%clk 0:00:05]} 63. Qf7+ {[%clk 0:00:02]}  Kh8 {[%clk 0:00:05]} 64. Kg6 {[%clk 0:00:03]}  Re6+ {[%clk 0:00:04]} 65. Qxe6 {[%clk 0:00:03]} 1-0


[Site "https://www.chess.com"]

[Event "Titled Tuesday Blitz April 25 Early 2023"]
[White "Kleiman, Jake"]
[Black "Fressinet, Laurent"]
[WhiteFideId "2020041"]
[BlackFideId "608742"]
[WhiteElo "2545"]
[BlackElo "2633"]
[Result "1-0"]
[Round "07"]
[TimeControl "180+2"]
[Date "2023.04.25"]
[WhiteClock "0:01:16"]
[BlackClock "0:01:54"]

1. e4 {[%clk 0:02:52]}  e5 {[%clk 0:02:59]} 2. Nf3 {[%clk 0:02:52]}  Nc6 {[%clk 0:03:00]} 3. Bc4 {[%clk 0:02:53]}  Bc5 {[%clk 0:02:59]} 4. d3 {[%clk 0:02:53]}  d6 {[%clk 0:02:58]} 5. c3 {[%clk 0:02:54]}  Nf6 {[%clk 0:02:55]} 6. Bb3 {[%clk 0:02:54]}  a6 {[%clk 0:02:55]} 7. O-O {[%clk 0:02:55]}  Ba7 {[%clk 0:02:54]} 8. Nbd2 {[%clk 0:02:55]}  Ne7 {[%clk 0:02:54]} 9. Re1 {[%clk 0:02:55]}  Ng6 {[%clk 0:02:54]} 10. Nf1 {[%clk 0:02:55]}  O-O {[%clk 0:02:52]} 11. Ng3 {[%clk 0:02:55]}  c6 {[%clk 0:02:52]} 12. h3 {[%clk 0:02:56]}  d5 {[%clk 0:02:52]} 13. exd5 {[%clk 0:02:53]}  Nxd5 {[%clk 0:02:53]} 14. d4 {[%clk 0:02:33]}  exd4 {[%clk 0:02:52]} 15. Nxd4 {[%clk 0:02:31]}  Be6 {[%clk 0:02:50]} 16. Nxe6 {[%clk 0:02:02]}  fxe6 {[%clk 0:02:51]} 17. Ne4 {[%clk 0:02:03]}  Qh4 {[%clk 0:02:44]} 18. Bg5 {[%clk 0:01:17]}  Bxf2+ {[%clk 0:02:23]} 19. Kh1 {[%clk 0:01:17]}  Bxe1 {[%clk 0:02:10]} 20. Bxh4 {[%clk 0:01:18]}  Rf1+ {[%clk 0:01:54]} 21. Kh2 {[%clk 0:01:17]}  Bxh4 {[%clk 0:01:54]} 22. Qxf1 {[%clk 0:01:16]} 1-0


[Site "https://www.chess.com"]

[Event "Titled Tuesday Blitz April 25 Early 2023"]
[White "Kollars, Dmitrij"]
[Black "Lewicki, Miroslaw"]
[WhiteFideId "12909572"]
[BlackFideId "1113380"]
[WhiteElo "2584"]
[BlackElo "2212"]
[Result "0-1"]
[Round "07"]
[TimeControl "180+2"]
[Date "2023.04.25"]
[WhiteClock "0:00:04"]
[BlackClock "0:00:19"]

1. d4 {[%clk 0:03:00]}  Nf6 {[%clk 0:02:59]} 2. c4 {[%clk 0:03:01]}  e6 {[%clk 0:02:59]} 3. Nf3 {[%clk 0:03:01]}  d5 {[%clk 0:03:00]} 4. g3 {[%clk 0:03:01]}  Nbd7 {[%clk 0:03:00]} 5. Bg2 {[%clk 0:03:00]}  Be7 {[%clk 0:03:00]} 6. O-O {[%clk 0:02:58]}  O-O {[%clk 0:03:00]} 7. Nc3 {[%clk 0:02:56]}  dxc4 {[%clk 0:02:56]} 8. Qc2 {[%clk 0:02:42]}  Nd5 {[%clk 0:02:50]} 9. e4 {[%clk 0:02:34]}  Nxc3 {[%clk 0:02:49]} 10. bxc3 {[%clk 0:02:34]}  c5 {[%clk 0:02:42]} 11. Be3 {[%clk 0:02:27]}  cxd4 {[%clk 0:02:41]} 12. cxd4 {[%clk 0:02:28]}  Nb6 {[%clk 0:02:39]} 13. a4 {[%clk 0:02:27]}  a5 {[%clk 0:02:36]} 14. Ne5 {[%clk 0:02:23]}  Bb4 {[%clk 0:02:22]} 15. Rfc1 {[%clk 0:02:12]}  c3 {[%clk 0:02:14]} 16. Bf1 {[%clk 0:01:54]}  Qe7 {[%clk 0:01:31]} 17. Nd3 {[%clk 0:01:34]}  Nc4 {[%clk 0:01:18]} 18. Bf4 {[%clk 0:01:17]}  e5 {[%clk 0:01:03]} 19. dxe5 {[%clk 0:00:51]}  Be6 {[%clk 0:01:02]} 20. h4 {[%clk 0:00:47]}  h6 {[%clk 0:01:02]} 21. Rcb1 {[%clk 0:00:35]}  Na3 {[%clk 0:00:59]} 22. Rxa3 {[%clk 0:00:34]}  Bxa3 {[%clk 0:01:00]} 23. Qxc3 {[%clk 0:00:35]}  Rfc8 {[%clk 0:00:59]} 24. Qe1 {[%clk 0:00:22]}  Rc2 {[%clk 0:00:56]} 25. Be3 {[%clk 0:00:20]}  Qd7 {[%clk 0:00:42]} 26. Nf4 {[%clk 0:00:16]}  Bc4 {[%clk 0:00:39]} 27. Bxc4 {[%clk 0:00:12]}  Rxc4 {[%clk 0:00:40]} 28. Bb6 {[%clk 0:00:10]}  Qxa4 {[%clk 0:00:37]} 29. e6 {[%clk 0:00:09]}  fxe6 {[%clk 0:00:36]} 30. Qd2 {[%clk 0:00:09]}  Rxe4 {[%clk 0:00:35]} 31. Nh5 {[%clk 0:00:06]}  Qc6 {[%clk 0:00:30]} 32. Be3 {[%clk 0:00:04]}  Bb4 {[%clk 0:00:28]} 33. Qd3 {[%clk 0:00:05]}  Qd5 {[%clk 0:00:20]} 34. Qe2 {[%clk 0:00:03]}  Rf8 {[%clk 0:00:19]} 35. Rd1 {[%clk 0:00:03]}  Qf5 {[%clk 0:00:19]} 36. Kh2 {[%clk 0:00:04]}  Bc5 {[%clk 0:00:18]} 37. Rd3 {[%clk 0:00:03]}  Bxe3 {[%clk 0:00:18]} 38. Rxe3 {[%clk 0:00:03]}  Qxf2+ {[%clk 0:00:18]} 39. Qxf2 {[%clk 0:00:04]}  Rxf2+ {[%clk 0:00:19]} 0-1


[Site "https://www.chess.com"]

[Event "Titled Tuesday Blitz April 25 Early 2023"]
[White "Bortnyk, Olexandr"]
[Black "Skvortsov, Andrei"]
[WhiteFideId "14120828"]
[BlackFideId "24108600"]
[WhiteElo "2734"]
[BlackElo "2259"]
[Result "1-0"]
[Round "07"]
[TimeControl "180+2"]
[Date "2023.04.25"]
[WhiteClock "0:00:03"]
[BlackClock "0:00:08"]

1. d4 {[%clk 0:03:00]}  e6 {[%clk 0:02:53]} 2. Nc3 {[%clk 0:03:01]}  c5 {[%clk 0:02:50]} 3. d5 {[%clk 0:02:58]}  Nf6 {[%clk 0:02:44]} 4. e4 {[%clk 0:02:57]}  d6 {[%clk 0:02:44]} 5. Bg5 {[%clk 0:02:54]}  Be7 {[%clk 0:02:40]} 6. Bb5+ {[%clk 0:02:43]}  Bd7 {[%clk 0:02:38]} 7. dxe6 {[%clk 0:02:39]}  fxe6 {[%clk 0:02:38]} 8. Bxf6 {[%clk 0:02:39]}  gxf6 {[%clk 0:02:28]} 9. Qh5+ {[%clk 0:02:36]}  Kf8 {[%clk 0:02:29]} 10. O-O-O {[%clk 0:02:34]}  Nc6 {[%clk 0:02:16]} 11. Qh6+ {[%clk 0:02:26]}  Ke8 {[%clk 0:02:10]} 12. Be2 {[%clk 0:02:19]}  Qa5 {[%clk 0:02:07]} 13. Qg7 {[%clk 0:02:04]}  Rf8 {[%clk 0:02:05]} 14. Nf3 {[%clk 0:01:58]}  Kd8 {[%clk 0:01:45]} 15. Kb1 {[%clk 0:01:48]}  a6 {[%clk 0:01:43]} 16. Bc4 {[%clk 0:00:47]}  b5 {[%clk 0:01:35]} 17. Bd5 {[%clk 0:00:33]}  b4 {[%clk 0:00:51]} 18. Bxc6 {[%clk 0:00:27]}  Bxc6 {[%clk 0:00:52]} 19. Ne2 {[%clk 0:00:26]}  Bxe4 {[%clk 0:00:48]} 20. Nf4 {[%clk 0:00:25]}  Kd7 {[%clk 0:00:33]} 21. Rhe1 {[%clk 0:00:15]}  Bf5 {[%clk 0:00:21]} 22. Nxe6 {[%clk 0:00:08]}  Bxe6 {[%clk 0:00:18]} 23. Rxe6 {[%clk 0:00:08]}  Kxe6 {[%clk 0:00:19]} 24. Re1+ {[%clk 0:00:08]}  Kd5 {[%clk 0:00:19]} 25. Qxe7 {[%clk 0:00:06]}  Kc6 {[%clk 0:00:17]} 26. Qe4+ {[%clk 0:00:02]}  Kb6 {[%clk 0:00:17]} 27. Nd2 {[%clk 0:00:01]}  Qb5 {[%clk 0:00:18]} 28. Nc4+ {[%clk 0:00:02]}  Ka7 {[%clk 0:00:18]} 29. Qxh7+ {[%clk 0:00:03]}  Kb8 {[%clk 0:00:14]} 30. Nxd6 {[%clk 0:00:03]}  Qc6 {[%clk 0:00:11]} 31. Qe7 {[%clk 0:00:02]}  Rh8 {[%clk 0:00:11]} 32. Qxf6 {[%clk 0:00:02]}  Rd8 {[%clk 0:00:11]} 33. Qxd8+ {[%clk 0:00:02]}  Ka7 {[%clk 0:00:08]} 34. Re7+ {[%clk 0:00:03]} 1-0


[Site "https://www.chess.com"]